bitfinex/quotes_SOLUSD_20250201
["timestamp","ask_amount","ask_price","bid_price","bid_amount"]
[1738419080755,0.486891,228.12,227.98,0.513109]
[1738419081317,20.0,228.06,227.98,0.513109]
[1738419081846,20.0,228.06,227.97,6.63]
[1738419082045,20.0,228.02,227.97,6.63]
[1738419082253,20.0,228.02,227.96,0.063]
[1738419082426,20.0,227.98,227.96,0.063]
[1738419083141,20.0,228.02,227.96,0.063]
[1738419083545,82.6,228.05,227.96,0.063]
[1738419083715,20.0,228.02,227.96,0.063]
[1738419084552,20.0,228.04,227.96,0.063]
[1738419084846,20.0,228.03,227.96,0.063]
[1738419091425,19.90692449,228.03,227.96,0.063]
[1738419091622,83.086891,228.07,227.96,0.063]
[1738419091951,13.41184853,228.06,227.96,0.063]
[1738419093984,20.0,227.99,227.96,0.063]
[1738419095332,20.0,227.94,227.87,0.513109]
[1738419096038,20.0,227.94,227.85,2.030109]
[1738419096229,20.0,227.94,227.85,1.517]
[1738419097127,33.41184853,227.93,227.85,1.517]
[1738419097330,116.01184853,227.93,227.85,1.517]
[1738419098653,116.01184853,227.93,227.85,0.063]
[1738419099961,116.01184853,227.93,227.84,6.3882]
[1738419099962,116.49873953,227.93,227.84,0.063]
[1738419100665,20.0,227.88,227.83,0.063]
[1738419101239,20.0,227.84,227.79,0.513109]
[1738419102058,27.59236392,227.88,227.79,0.513109]
[1738419102059,20.0,227.85,227.79,0.513109]
[1738419103670,20.0,227.85,227.81,0.513109]
[1738419103850,27.59236392,227.88,227.85,0.513109]
[1738419104265,20.0,227.85,227.83,0.513109]
[1738419105776,27.59236392,227.88,227.87,0.513109]
[1738419106361,20.0,227.86,227.85,0.513109]
[1738419106880,20.0,227.86,227.82,9.0327]
[1738419106881,20.0,227.85,227.83,0.513109]
[1738419108891,20.0,227.85,227.82,8.0327]
[1738419109673,20.0,227.85,227.79,0.513109]
[1738419112266,20.0,227.85,227.77,8.0327]
[1738419112267,20.0,227.85,227.78,0.513109]
[1738419115081,21.09571977,227.85,227.78,0.513109]
[1738419118691,20.0,227.85,227.8,0.513109]
[1738419120790,20.0,227.85,227.78,0.513109]
[1738419122587,20.0,227.81,227.73,0.063]
[1738419122884,20.0,227.77,227.7,0.513109]
[1738419123275,20.0,227.77,227.68,0.513109]
[1738419123475,20.0,227.77,227.7,0.513109]
[1738419128890,20.0,227.77,227.69,1.0]
[1738419129078,20.0,227.77,227.69,1.513109]
[1738419129970,20.0,227.77,227.7,0.513109]
[1738419133374,20.0,227.77,227.64,8.0215]
[1738419133375,20.0,227.77,227.68,0.513109]
[1738419134189,20.0,227.77,227.67,1.0]
[1738419135598,20.0,227.77,227.68,0.513109]
[1738419136112,20.0,227.77,227.68,0.42003348]
[1738419137303,20.0,227.77,227.67,1.0]
[1738419138808,20.0,227.77,227.68,0.42003348]
[1738419140816,20.0,227.77,227.67,1.0]
[1738419140977,20.0,227.77,227.68,0.42003348]
[1738419141482,20.0,227.77,227.67,1.0]
[1738419144714,20.0,227.77,227.68,0.42003348]
[1738419147404,20.03,227.77,227.68,0.42003348]
[1738419148395,20.03,227.77,227.67,1.063]
[1738419149033,20.03,227.77,227.67,0.063]
[1738419152206,20.03,227.77,227.68,0.42003348]
[1738419153919,20.03,227.77,227.69,1.0]
[1738419154124,0.03,227.77,227.71,0.42003348]
[1738419155024,0.03,227.77,227.71,1.42003348]
[1738419155204,0.03,227.77,227.75,0.42003348]
[1738419155995,0.03,227.77,227.76,1.0]
[1738419157629,0.03,227.77,227.75,0.42003348]
[1738419159831,0.03,227.77,227.76,1.0]
[1738419163337,0.03,227.77,227.75,0.42003348]
[1738419165823,0.03,227.77,227.76,1.0]
[1738419169635,0.03,227.77,227.76,14.41184853]
[1738419173939,0.03,227.77,227.76,1.0]
[1738419176737,0.03,227.77,227.75,0.42003348]
[1738419176949,0.03,227.77,227.68,7.8354]
[1738419176950,0.03,227.77,227.73,0.42003348]
[1738419177244,0.03,227.77,227.71,0.42003348]
[1738419178449,0.03,227.77,227.72,0.42003348]
[1738419178628,0.03,227.77,227.7,1.42003348]
[1738419180953,0.03,227.77,227.7,0.42003348]
[1738419181129,20.0,227.75,227.68,0.063]
[1738419182538,20.0,227.75,227.68,0.48303348]
[1738419185055,20.0,227.75,227.68,0.063]
[1738419185553,0.03,227.77,227.69,0.42003348]
[1738419186067,0.03,227.77,227.72,0.42003348]
[1738419187053,0.03,227.77,227.74,0.42003348]
[1738419189659,0.03,227.77,227.76,1.42003348]
[1738419191659,0.03,227.77,227.76,1.0]
[1738419191863,0.03,227.77,227.75,0.42003348]
[1738419192030,0.03,227.77,227.76,1.0]
[1738419201739,0.03,227.77,227.76,14.41184853]
[1738419222177,0.03,227.77,227.76,25.4474519]
[1738419222469,0.03,227.77,227.76,27.0190519]
[1738419222776,0.03,227.77,227.76,33.3365519]
[1738419223281,1.5748,227.96,227.93,1.0]
[1738419225875,1.5748,227.96,227.87,1.42003348]
[1738419227555,1.5748,227.96,227.87,1.0]
[1738419228367,20.0,227.92,227.85,1.0]
[1738419228550,20.0,227.92,227.83,1.0]
[1738419229569,18.5,227.92,227.83,1.0]
[1738419229770,18.5,227.92,227.83,1.42003348]
[1738419229954,6.0401,227.91,227.83,1.0]
[1738419230159,6.0401,227.91,227.81,1.42003348]
[1738419230387,6.0401,227.91,227.81,1.0]
[1738419231780,6.0401,227.91,227.81,1.42003348]
[1738419231781,20.0,227.88,227.81,1.42003348]
[1738419231966,20.0,227.88,227.81,1.0]
[1738419232168,20.0,227.88,227.83,1.0]
[1738419232470,20.0,227.88,227.83,1.42003348]
[1738419233164,20.0,227.88,227.83,1.0]
[1738419234776,1.5748,227.87,227.8,1.0]
[1738419235661,1.5748,227.87,227.78,1.0]
[1738419235861,20.0,227.83,227.78,1.0]
[1738419236169,20.0,227.83,227.77,0.42003348]
[1738419238283,20.0,227.83,227.76,1.0]
[1738419238985,20.0,227.83,227.77,0.42003348]
[1738419239781,20.0,227.83,227.75,0.42003348]
[1738419239982,20.0,227.83,227.73,0.42003348]
[1738419240189,20.0,227.83,227.75,0.42003348]
[1738419240563,20.0,227.83,227.75,1.42003348]
[1738419240876,20.0,227.83,227.75,0.42003348]
[1738419241478,21.12237087,227.83,227.75,1.42003348]
[1738419242088,21.12237087,227.83,227.75,1.48303348]
[1738419244178,20.0,227.79,227.75,0.063]
[1738419246058,1.5787,227.78,227.75,0.063]
[1738419246289,1.5787,227.78,227.71,0.42003348]
[1738419246669,20.0,227.74,227.68,0.063]
[1738419247484,20.0,227.74,227.7,1.0]
[1738419250198,20.0,227.74,227.68,1.063]
[1738419251888,20.0,227.74,227.68,0.063]
[1738419252693,20.0,227.74,227.68,1.063]
[1738419253892,20.0,227.74,227.68,0.063]
[1738419257198,21.758907,227.74,227.68,0.063]
[1738419261677,20.0,227.7,227.68,0.063]
[1738419262784,21.12471935,227.7,227.68,0.063]
[1738419263713,21.12471935,227.7,227.67,0.063]
[1738419265895,21.12471935,227.7,227.62,0.063]
[1738419265896,20.0,227.66,227.62,0.063]
[1738419266914,13.41184853,227.65,227.62,0.063]
[1738419267200,20.0,227.62,227.59,0.063]
[1738419268301,20.0,227.58,227.57,0.063]
[1738419269102,20.0,227.58,227.51,1.42003348]
[1738419269298,20.0,227.58,227.49,1.42003348]
[1738419270003,20.0,227.54,227.49,1.42003348]
[1738419270195,20.0,227.54,227.49,1.0]
[1738419271090,33.41184853,227.53,227.46,1.0]
[1738419271279,20.0,227.53,227.46,1.0]
[1738419272101,20.0,227.53,227.48,0.42003348]
[1738419272300,20.0,227.53,227.46,1.42003348]
[1738419273120,20.0,227.53,227.46,1.0]
[1738419273907,20.0,227.53,227.49,0.42003348]
[1738419274697,20.0,227.53,227.48,1.0]
[1738419274920,21.08912084,227.53,227.45,1.063]
[1738419275499,20.0,227.49,227.45,0.063]
[1738419275892,20.0,227.49,227.45,1.063]
[1738419277411,20.0,227.49,227.45,0.063]
[1738419278501,15.01404853,227.52,227.39,0.48303348]
[1738419278502,20.0,227.45,227.39,0.48303348]
[1738419278890,20.0,227.45,227.39,0.063]
[1738419279306,20.0,227.41,227.39,0.063]
[1738419280594,21.5744,227.41,227.35,0.42003348]
[1738419280994,20.0,227.37,227.34,1.03]
[1738419281803,1.08906947,227.41,227.34,1.03]
[1738419281991,20.0,227.42,227.35,0.42003348]
[1738419282396,20.0,227.42,227.36,1.0]
[1738419282593,1.09842763,227.45,227.38,0.42003348]
[1738419282795,20.0,227.42,227.38,0.42003348]
[1738419283397,20.0,227.46,227.38,1.42003348]
[1738419283802,20.0,227.45,227.4,0.42003348]
[1738419284012,2.18628604,227.47,227.4,0.42003348]
[1738419284205,13.41184853,227.48,227.42,0.42003348]
[1738419285117,20.0,227.48,227.42,1.42003348]
[1738419285699,22.23203797,227.49,227.42,1.42003348]
[1738419285900,20.0,227.49,227.42,1.42003348]
[1738419286493,21.11579882,227.49,227.42,0.42003348]
[1738419287326,13.41184853,227.48,227.42,0.42003348]
[1738419288212,1.11579882,227.49,227.42,1.42003348]
[1738419288395,2.62671635,227.52,227.42,1.42003348]
[1738419288805,20.0,227.49,227.42,1.42003348]
[1738419289007,1.1038256,227.49,227.42,1.42003348]
[1738419289208,13.41184853,227.51,227.42,1.42003348]
[1738419289610,36.6185314,227.52,227.42,1.42003348]
[1738419289806,13.41184853,227.49,227.42,1.42003348]
[1738419290116,20.0,227.46,227.42,1.42003348]
[1738419291634,20.0,227.46,227.42,1.0]
[1738419291813,20.0,227.46,227.42,1.42003348]
[1738419292220,21.08478464,227.49,227.42,1.42003348]
[1738419292621,20.0,227.49,227.44,1.0]
[1738419294605,2.87424276,227.5,227.46,1.42003348]
[1738419294606,1.761014,227.5,227.46,1.42003348]
[1738419299114,1.761014,227.5,227.46,0.42003348]
[1738419299730,1.761014,227.5,227.44,1.42003348]
[1738419300534,1.761014,227.5,227.47,0.42003348]
[1738419300729,1.761014,227.5,227.46,1.0]
[1738419300929,1.761014,227.5,227.44,1.0]
[1738419301132,1.761014,227.5,227.43,1.5094]
[1738419301435,13.41184853,227.49,227.4,1.0]
[1738419301614,13.41184853,227.49,227.38,2.6232]
[1738419302030,20.0,227.46,227.38,2.6232]
[1738419302717,20.0,227.42,227.36,1.0]
[1738419305836,20.0,227.42,227.34,1.45003348]
[1738419306041,13.41184853,227.41,227.34,1.45003348]
[1738419306341,20.0,227.38,227.34,1.45003348]
[1738419307918,1.08397025,227.42,227.34,1.45003348]
[1738419308118,20.0,227.42,227.34,1.45003348]
[1738419308620,20.0,227.38,227.34,1.45003348]
[1738419309844,20.0,227.38,227.34,0.03]
[1738419310141,20.0,227.35,227.34,0.03]
[1738419310532,20.0,227.34,227.32,0.03]
[1738419311919,20.0,227.34,227.32,0.45003348]
[1738419313028,0.57996652,227.43,227.32,1.45003348]
[1738419313233,0.57996652,227.45,227.32,1.45003348]
[1738419313649,20.0,227.41,227.32,1.45003348]
[1738419313947,20.0,227.37,227.32,1.45003348]
[1738419316555,20.0,227.34,227.32,0.03]
[1738419319036,21.10332043,227.34,227.32,0.03]
[1738419319220,0.57996652,227.43,227.32,0.03]
[1738419319628,20.0,227.37,227.27,1.6515]
[1738419319823,20.0,227.33,227.27,1.6515]
[1738419323557,20.0,227.29,227.25,0.42003348]
[1738419324054,20.0,227.25,227.23,0.42003348]
[1738419325146,21.11980109,227.25,227.23,0.42003348]
[1738419325334,21.11980109,227.25,227.24,0.42003348]
[1738419325541,21.11980109,227.25,227.22,1.583]
[1738419326047,20.0,227.25,227.22,1.583]
[1738419330432,7.4352,227.24,227.22,1.583]
[1738419333240,7.4352,227.24,227.22,2.583]
[1738419334238,7.4352,227.24,227.22,1.583]
[1738419334444,7.4352,227.24,227.22,0.03]
[1738419335074,2.21740509,227.26,227.23,1.0]
[1738419335238,6.4352,227.25,227.23,1.0]
[1738419335639,20.0,227.23,227.22,0.03]
[1738419337364,20.0,227.28,227.22,0.03]
[1738419341275,20.0,227.24,227.17,1.553]
[1738419341573,13.41184853,227.23,227.15,3.51214859]
[1738419342067,20.0,227.18,227.15,3.51214859]
[1738419342651,20.0,227.27,227.15,3.51214859]
[1738419346970,1.10668159,227.28,227.15,3.51214859]
[1738419347145,20.0,227.27,227.15,3.51214859]
[1738419347687,20.0,227.27,227.16,1.5135]
[1738419348357,20.063,227.27,227.16,1.5135]
[1738419349577,20.0,227.23,227.16,1.5135]
[1738419350582,20.0,227.19,227.16,1.5135]
[1738419351974,20.0,227.19,227.15,3.54214859]
[1738419352174,20.0,227.19,227.1,0.03]
[1738419352687,20.0,227.15,227.1,0.03]
[1738419354393,20.0,227.15,227.05,1.5135]
[1738419355253,20.0,227.11,227.05,1.5135]
[1738419356754,20.0,227.11,227.0,180.26691764]
[1738419358676,20.0,227.07,227.0,180.26691764]
[1738419359251,20.0,227.12,227.0,180.26691764]
[1738419359459,20.0,227.08,227.0,180.26691764]
[1738419359858,20.0,227.08,227.0,180.29691764]
[1738419361060,20.0,227.04,227.0,172.33349044]
[1738419361482,20.0,227.04,227.0,35.8645801]
[1738419361684,20.0,227.01,226.99,0.03]
[1738419361869,20.0,226.98,226.92,6.3771]
[1738419362077,20.0,226.98,226.89,1.5393]
[1738419362379,20.0,226.94,226.89,1.5393]
[1738419362779,20.0,226.94,226.74,3.02]
[1738419362780,20.0,226.94,226.77,14.34561423]
[1738419363177,20.0,226.9,226.77,1.5393]
[1738419363491,20.0,226.91,226.77,1.5393]
[1738419363874,13.41184853,226.9,226.77,1.5393]
[1738419364376,20.0,226.91,226.77,1.5393]
[1738419364775,6.5502,226.94,226.77,1.5393]
[1738419364776,20.0,226.94,226.77,1.5393]
[1738419365173,20.0,226.94,226.78,6.3471]
[1738419365573,20.0,226.9,226.78,6.3471]
[1738419366286,1.09054149,226.94,226.79,12.80631423]
[1738419366486,1.09054149,226.94,226.78,6.3471]
[1738419366487,1.12622316,226.98,226.81,12.80631423]
[1738419366703,33.41184853,226.97,226.81,12.80631423]
[1738419366987,13.41184853,227.0,226.8,13.41184853]
[1738419367285,20.0,226.93,226.8,13.41184853]
[1738419367492,20.0,226.93,226.82,13.41184853]
[1738419367696,20.0,226.93,226.81,1.5393]
[1738419367892,13.41184853,226.94,226.78,6.3471]
[1738419368093,20.0,226.91,226.78,6.3471]
[1738419368491,21.0,226.98,226.78,6.3471]
[1738419368687,1.0,227.0,226.79,13.41184853]
[1738419368872,20.0,226.94,226.78,19.15341423]
[1738419369073,20.0,226.9,226.78,19.15341423]
[1738419371401,20.0,226.98,226.79,13.41184853]
[1738419371593,13.41184853,226.97,226.79,13.41184853]
[1738419371896,20.0,226.94,226.79,13.41184853]
[1738419372102,20.0,226.94,226.8,1.5393]
[1738419372304,20.0,226.94,226.8,14.34561423]
[1738419372671,19.90931598,226.94,226.81,13.41184853]
[1738419373077,1.07901668,226.99,226.81,13.41184853]
[1738419373277,13.41184853,226.98,226.81,13.41184853]
[1738419373676,13.41184853,226.99,226.81,13.41184853]
[1738419373877,14.41184853,226.99,226.8,1.5393]
[1738419374289,1.0,226.98,226.8,1.5393]
[1738419374892,20.0,226.93,226.8,1.5393]
[1738419375499,1.07890634,227.0,226.81,13.41184853]
[1738419375692,7.5502,227.05,226.84,1.5393]
[1738419375895,27.70029296,227.01,226.85,13.41184853]
[1738419376125,28.79459957,227.01,226.85,13.41184853]
[1738419376281,20.0,226.98,226.86,6.3471]
[1738419376682,28.79459957,227.01,226.86,6.3471]
[1738419377205,20.0,226.98,226.86,6.3471]
[1738419381112,20.0,226.98,226.84,1.5393]
[1738419381113,0.5176727,226.91,226.8,12.80631423]
[1738419381413,0.5176727,226.89,226.8,12.80631423]
[1738419383694,0.5176727,226.87,226.78,12.80631423]
[1738419384089,0.5176727,226.87,226.79,7.6696]
[1738419384501,0.5176727,226.87,226.8,0.03]
[1738419385109,0.5176727,226.93,226.8,26.24816276]
[1738419385310,0.5176727,226.91,226.83,12.80631423]
[1738419385503,0.5176727,226.93,226.83,12.80631423]
[1738419385714,0.5176727,226.95,226.83,12.80631423]
[1738419385894,0.5176727,226.93,226.84,1.6549]
[1738419388016,0.5176727,226.95,226.84,1.6549]
[1738419388202,29.89541531,227.01,226.87,12.80631423]
[1738419388203,0.5176727,226.97,226.87,12.80631423]
[1738419389115,0.5176727,226.97,226.86,6.0551]
[1738419390407,0.5176727,226.97,226.87,12.80631423]
[1738419390611,20.0,226.98,226.87,12.80631423]
[1738419391410,0.5176727,226.97,226.87,12.80631423]
[1738419391617,20.0,226.98,226.87,12.80631423]
[1738419392400,20.0,226.98,226.9,12.80631423]
[1738419392595,27.70029296,227.01,226.92,12.80631423]
[1738419393007,20.0,226.98,226.92,12.80631423]
[1738419393205,20.0,226.98,226.9,12.80631423]
[1738419393408,20.0,226.98,226.88,14.46121423]
[1738419393599,20.0,226.98,226.89,12.80631423]
[1738419394632,20.0,226.98,226.88,14.46121423]
[1738419395222,20.0,226.98,226.89,12.80631423]
[1738419397012,20.0,226.98,226.88,14.46121423]
[1738419398825,20.0,226.98,226.88,1.6549]
[1738419399033,0.5176727,226.94,226.88,1.6549]
[1738419399244,0.5176727,226.92,226.86,6.0551]
[1738419399436,0.5176727,226.92,226.82,1.5086]
[1738419400234,0.5176727,226.92,226.83,12.80631423]
[1738419401432,0.5176727,226.94,226.85,12.80631423]
[1738419405723,0.5176727,226.94,226.84,8.2141756]
[1738419406754,0.5176727,226.96,226.84,8.2141756]
[1738419406933,0.5176727,226.98,226.88,8.2141756]
[1738419407253,0.5806727,227.0,226.88,8.2141756]
[1738419407428,20.0,226.98,226.88,8.2141756]
[1738419407632,20.5176727,226.98,226.88,8.2141756]
[1738419407831,0.5176727,226.98,226.88,8.2141756]
[1738419408542,20.5176727,226.98,226.88,8.2141756]
[1738419409048,20.5176727,226.98,226.86,8.2141756]
[1738419409755,0.063,226.97,226.86,8.2141756]
[1738419411551,20.0,226.94,226.84,8.2141756]
[1738419411845,20.5176727,226.94,226.84,8.2141756]
[1738419412246,20.5176727,226.94,226.82,1.5086]
[1738419412247,0.5176727,226.96,226.86,8.2141756]
[1738419412453,0.5176727,226.94,226.86,8.2141756]
[1738419413149,0.5176727,226.94,226.84,8.2141756]
[1738419413458,0.5176727,226.92,226.84,8.2141756]
[1738419416952,0.5176727,226.94,226.84,8.2141756]
[1738419417263,0.5176727,226.96,226.86,8.2141756]
[1738419417472,1.827784,226.97,226.86,8.2141756]
[1738419417645,0.063,226.97,226.88,8.2141756]
[1738419418549,0.063,226.97,226.87,8.2141756]
[1738419420543,0.5176727,226.95,226.85,8.2141756]
[1738419420749,0.5806727,226.97,226.87,8.2141756]
[1738419421842,0.063,226.95,226.87,8.2141756]
[1738419422035,0.063,226.95,226.86,8.2141756]
[1738419422237,0.063,226.95,226.87,8.2141756]
[1738419423669,0.063,226.95,226.93,8.2141756]
[1738419423864,0.5176727,226.86,226.85,8.2141756]
[1738419424035,0.5176727,226.89,226.81,0.03]
[1738419425866,0.5176727,226.86,226.81,0.03]
[1738419426037,0.5176727,226.88,226.81,0.03]
[1738419427857,2.0236727,226.83,226.81,0.03]
[1738419429439,0.5176727,226.86,226.81,0.03]
[1738419431175,0.5176727,226.88,226.81,0.03]
[1738419431742,20.0,226.87,226.81,0.03]
[1738419431944,0.5176727,226.86,226.81,0.03]
[1738419432647,0.5176727,226.84,226.81,0.03]
[1738419434063,0.5176727,226.86,226.81,0.03]
[1738419434254,0.5176727,226.84,226.81,0.03]
[1738419434566,0.5176727,226.86,226.81,0.03]
[1738419435356,0.5176727,226.88,226.81,0.03]
[1738419435541,0.6609,226.94,226.81,0.03]
[1738419435542,0.5176727,226.9,226.81,0.03]
[1738419436176,0.5176727,226.88,226.81,0.03]
[1738419436376,0.5176727,226.92,226.81,0.03]
[1738419436548,0.5176727,226.92,226.82,8.2141756]
[1738419437272,0.5176727,226.94,226.82,8.2141756]
[1738419437472,20.5176727,226.92,226.82,8.2141756]
[1738419437957,0.5176727,226.94,226.84,8.2141756]
[1738419438882,0.5176727,226.94,226.82,8.2141756]
[1738419439976,0.5176727,226.91,226.82,8.2141756]
[1738419440349,0.5176727,226.94,226.84,8.2141756]
[1738419441048,0.5176727,226.9,226.81,0.03]
[1738419441447,0.5176727,226.88,226.81,0.03]
[1738419442264,0.5176727,226.92,226.81,0.03]
[1738419442581,0.5176727,226.92,226.81,8.2441756]
[1738419442961,0.5176727,226.94,226.81,8.2441756]
[1738419443151,0.5176727,226.94,226.83,8.2141756]
[1738419443352,0.5176727,226.92,226.83,8.2141756]
[1738419443668,0.5176727,226.9,226.81,0.03]
[1738419444653,0.063,226.94,226.81,0.03]
[1738419444654,0.5176727,226.87,226.81,0.03]
[1738419444960,0.6609,226.93,226.81,0.03]
[1738419444961,0.5176727,226.85,226.81,0.03]
[1738419447558,0.5176727,226.87,226.81,0.03]
[1738419448489,0.5176727,226.89,226.81,0.03]
[1738419448988,0.5176727,226.87,226.81,0.03]
[1738419451563,0.5176727,226.93,226.81,12.86994482]
[1738419453185,20.063,226.94,226.83,14.49344482]
[1738419453675,0.063,226.94,226.83,14.49344482]
[1738419455468,20.063,226.94,226.83,14.49344482]
[1738419457679,0.063,226.94,226.85,12.83994482]
[1738419459090,0.063,226.94,226.9,12.83994482]
[1738419459881,0.063,226.94,226.88,0.66083342]
[1738419459882,0.063,226.94,226.91,12.83994482]
[1738419460799,0.063,226.94,226.93,12.83994482]
[1738419460966,0.063,226.94,226.93,14.44994482]
[1738419461171,0.063,226.94,226.93,1.61]
[1738419462913,0.063,226.94,226.92,12.83994482]
[1738419463411,0.063,226.94,226.86,15.11074188]
[1738419463706,0.063,226.94,226.86,14.44994482]
[1738419464788,0.063,226.94,226.86,1.61]
[1738419466901,0.063,226.94,226.84,12.83994482]
[1738419469708,0.063,226.94,226.86,12.83994482]
[1738419470707,20.063,226.94,226.84,12.83994482]
[1738419470886,20.063,226.94,226.83,3.04]
[1738419471578,17.563,226.94,226.83,3.04]
[1738419474109,17.563,226.94,226.84,12.83994482]
[1738419475802,17.563,226.94,226.87,8.21200385]
[1738419477907,0.063,226.95,226.87,8.21200385]
[1738419479316,0.063,226.95,226.85,8.21200385]
[1738419480215,0.063,226.95,226.86,0.03]
[1738419480410,0.063,226.94,226.86,0.03]
[1738419483315,20.0,226.9,226.86,0.03]
[1738419483693,21.5585,226.9,226.86,0.03]
[1738419486623,0.5176727,226.89,226.86,0.03]
[1738419487997,0.5176727,226.87,226.86,0.03]
[1738419488219,0.5176727,226.87,226.81,0.03]
[1738419490502,22.0761727,226.9,226.81,0.03]
[1738419490908,22.0761727,226.9,226.8,0.03]
[1738419490909,22.0761727,226.9,226.76,4.4099]
[1738419491215,22.0761727,226.9,226.8,8.21200385]
[1738419491419,1.5585,226.9,226.82,8.21200385]
[1738419492011,1.5585,226.9,226.8,0.66114079]
[1738419492012,6.7137727,226.93,226.84,8.21200385]
[1738419493325,20.0,226.9,226.84,8.21200385]
[1738419493626,0.063,226.94,226.86,8.21200385]
[1738419495324,0.063,226.94,226.84,8.21200385]
[1738419495526,0.5176727,226.93,226.81,8.21200385]
[1738419497829,0.5176727,226.93,226.83,8.21200385]
[1738419498204,20.063,226.94,226.83,8.21200385]
[1738419498601,0.5176727,226.93,226.83,8.21200385]
[1738419500335,0.5176727,226.93,226.81,8.21200385]
[1738419503049,20.063,226.94,226.83,8.21200385]
[1738419503232,20.063,226.94,226.79,0.66108377]
[1738419503233,0.063,226.94,226.85,8.21200385]
[1738419503420,0.063,226.94,226.87,8.21200385]
[1738419503818,0.063,226.94,226.87,12.83067998]
[1738419504019,0.063,226.94,226.83,12.83067998]
[1738419504221,0.5806727,226.94,226.83,12.83067998]
[1738419504640,0.063,226.94,226.83,12.83067998]
[1738419505221,0.063,226.94,226.87,12.83067998]
[1738419505529,0.063,226.94,226.89,12.83067998]
[1738419506864,0.063,226.94,226.91,12.83067998]
[1738419507139,0.063,226.94,226.93,12.83067998]
[1738419507910,0.063,226.94,226.93,26.24252851]
[1738419508531,0.063,226.94,226.93,27.24252851]
[1738419508841,0.063,226.94,226.93,27.97583581]
[1738419509535,0.063,226.94,226.93,40.80651579]
[1738419509927,0.063,226.94,226.93,42.31841579]
[1738419511151,0.063,226.94,226.93,42.44390579]
[1738419511331,0.063,226.95,226.94,18.06922853]
[1738419511521,0.063,226.95,226.94,31.56039685]
[1738419513244,0.063,226.95,226.94,31.81137685]
[1738419515862,0.063,226.97,226.96,39.67664583]
[1738419516022,0.063,226.97,226.96,59.28542729]
[1738419516222,0.063,227.08,226.99,21.8587973]
[1738419516521,0.063,227.08,226.99,48.63620477]
[1738419517355,0.063,227.08,226.99,53.16709477]
[1738419517530,0.063,227.08,226.99,53.29258477]
[1738419517734,0.063,227.08,227.06,1.0]
[1738419517946,0.063,227.08,227.07,26.90280897]
[1738419519235,0.063,227.08,227.07,31.55768897]
[1738419523258,0.063,227.08,227.07,27.15378897]
[1738419523650,0.063,227.08,227.07,14.07212899]
[1738419523844,0.063,227.08,227.07,13.41184853]
[1738419524748,0.063,227.08,227.05,12.83067998]
[1738419525152,0.063,227.08,227.06,13.41184853]
[1738419526663,0.063,227.08,227.07,12.83067998]
[1738419527650,0.063,227.08,227.07,14.61650423]
[1738419527851,0.063,227.08,227.07,33.04007006]
[1738419529585,0.063,227.08,227.07,46.54105006]
[1738419529862,0.063,227.18,227.16,26.24252851]
[1738419530038,0.063,227.18,227.16,28.63583133]
[1738419530435,0.063,227.18,227.16,26.90252403]
[1738419535170,0.063,227.18,227.16,27.02801403]
[1738419535470,0.063,227.18,227.16,27.63583133]
[1738419536154,0.063,227.18,227.16,33.03793133]
[1738419541371,0.063,227.18,227.16,14.32282405]
[1738419542171,0.063,227.18,227.16,14.07184405]
[1738419543950,0.063,227.18,227.16,13.41184853]
[1738419545348,0.063,227.18,227.15,12.83067998]